bitfinex/quotes_BTCUSD_20250727
["timestamp","ask_amount","ask_price","bid_price","bid_amount"]
[1753646779293,0.00100001,119230.0,119220.0,3.67377859]
[1753646780417,0.00100001,119230.0,119220.0,3.65368259]
[1753646780638,7.748e-05,119230.0,119220.0,3.65368259]
[1753646780819,7.748e-05,119230.0,119220.0,3.63848259]
[1753646781150,7.748e-05,119230.0,119220.0,3.59954659]
[1753646781355,7.748e-05,119230.0,119220.0,3.66449859]
[1753646782362,7.748e-05,119230.0,119220.0,1.44663459]
[1753646782567,7.748e-05,119230.0,119220.0,3.66449859]
[1753646782769,7.748e-05,119230.0,119220.0,3.67989859]
[1753646783105,7.748e-05,119230.0,119220.0,3.60739259]
[1753646783521,7.748e-05,119230.0,119220.0,4.03941759]
[1753646783720,7.748e-05,119230.0,119220.0,4.02550859]
[1753646784237,7.748e-05,119230.0,119220.0,3.96342959]
[1753646784536,7.748e-05,119230.0,119220.0,3.20766259]
[1753646785460,7.748e-05,119230.0,119220.0,3.78345159]
[1753646786430,7.748e-05,119230.0,119220.0,1.46203459]
[1753646786634,7.748e-05,119230.0,119220.0,3.86519259]
[1753646786866,7.748e-05,119230.0,119220.0,4.06075382]
[1753646787063,7.748e-05,119230.0,119220.0,1.65759582]
[1753646787292,7.748e-05,119230.0,119220.0,4.15841982]
[1753646787508,7.748e-05,119230.0,119220.0,4.06625382]
[1753646788605,7.748e-05,119230.0,119220.0,4.00037582]
[1753646789008,7.748e-05,119230.0,119220.0,3.20206864]
[1753646789220,7.748e-05,119230.0,119220.0,3.92786782]
[1753646789576,7.748e-05,119230.0,119220.0,3.99637282]
[1753646790582,7.748e-05,119230.0,119220.0,4.08479782]
[1753646790823,6.12e-06,119230.0,119220.0,4.08479782]
[1753646791003,6.12e-06,119230.0,119220.0,3.99969082]
[1753646791707,6.12e-06,119230.0,119220.0,3.99949082]
[1753646792569,6.12e-06,119230.0,119220.0,4.08879182]
[1753646793502,6.12e-06,119230.0,119220.0,4.05875182]
[1753646793717,6.12e-06,119230.0,119220.0,4.08417282]
[1753646794720,6.12e-06,119230.0,119220.0,4.08758782]
[1753646795146,6.12e-06,119230.0,119220.0,3.89202659]
[1753646795854,6.12e-06,119230.0,119220.0,3.88865159]
[1753646795976,6.12e-06,119230.0,119220.0,3.72933559]
[1753646796778,6.12e-06,119230.0,119220.0,3.80211459]
[1753646797835,6.12e-06,119230.0,119220.0,3.80124359]
[1753646798822,6.12e-06,119230.0,119220.0,3.99680482]
[1753646798992,6.12e-06,119230.0,119220.0,4.00267982]
[1753646799886,6.12e-06,119230.0,119220.0,4.08509282]
[1753646800690,0.04035,119240.0,119230.0,2.4277206]
[1753646800925,0.05793,119240.0,119230.0,3.22293479]
[1753646801120,0.05793,119240.0,119230.0,3.22390479]
[1753646801350,0.05793,119240.0,119230.0,3.14052779]
[1753646801808,0.05793,119240.0,119230.0,3.14907778]
[1753646801957,0.05793,119240.0,119230.0,3.26033678]
[1753646802169,0.05793,119240.0,119230.0,3.26133678]
[1753646802393,0.05793,119240.0,119230.0,3.26347678]
[1753646803010,0.05793,119240.0,119230.0,3.29613378]
[1753646803745,0.05793,119240.0,119230.0,3.20724978]
[1753646804162,0.05793,119240.0,119230.0,3.20620978]
[1753646804405,0.05793,119240.0,119230.0,3.17756678]
[1753646805085,0.05793,119240.0,119230.0,3.20390078]
[1753646805504,0.05793,119240.0,119230.0,2.61516078]
[1753646806379,0.05793,119240.0,119230.0,1.36498978]
[1753646806592,0.05793,119240.0,119230.0,3.28591078]
[1753646807720,0.01878,119240.0,119230.0,3.25957678]
[1753646807938,0.0004,119240.0,119230.0,3.25957678]
[1753646808158,0.0256,119250.0,119240.0,2.15355043]
[1753646808370,0.0256,119250.0,119240.0,2.95086462]
[1753646808371,0.02568146,119250.0,119240.0,2.95086462]
[1753646808603,0.02568146,119250.0,119240.0,2.96831364]
[1753646808834,0.00998146,119250.0,119240.0,4.82466764]
[1753646809020,0.00998146,119250.0,119240.0,5.10347264]
[1753646809678,0.00998146,119250.0,119240.0,4.93433864]
[1753646809895,0.00998146,119250.0,119240.0,4.93331264]
[1753646809896,0.01098146,119250.0,119240.0,4.93331264]
[1753646810733,0.01098146,119250.0,119240.0,5.66358364]
[1753646810983,0.01098146,119250.0,119240.0,5.46358564]
[1753646811467,0.0004,119260.0,119250.0,4.02511544]
[1753646811689,0.0004,119260.0,119250.0,4.37795938]
[1753646811904,0.0004,119260.0,119250.0,4.01810979]
[1753646812113,0.0004,119260.0,119250.0,3.53311579]
[1753646812969,0.0004,119260.0,119250.0,3.49456879]
[1753646813398,0.0004,119260.0,119250.0,3.21076179]
[1753646813839,0.0154,119260.0,119250.0,3.21076179]
[1753646814055,0.0154,119260.0,119250.0,3.55076179]
[1753646814457,0.0154,119260.0,119250.0,3.57593979]
[1753646816033,0.0004,119260.0,119250.0,3.57593979]
[1753646816683,0.0004,119260.0,119250.0,3.93883938]
[1753646816873,0.0004,119260.0,119250.0,3.57593979]
[1753646817229,0.0004,119260.0,119250.0,5.29929238]
[1753646817476,0.0004,119260.0,119250.0,4.90175038]
[1753646817675,0.0004,119260.0,119250.0,4.53885079]
[1753646817886,0.0004,119260.0,119250.0,4.4405484]
[1753646818211,1e-08,119260.0,119250.0,3.9946784]
[1753646818416,1e-08,119260.0,119250.0,4.5002484]
[1753646818694,1e-08,119260.0,119250.0,4.5160484]
[1753646819874,1e-08,119260.0,119250.0,6.6266524]
[1753646820089,1e-08,119260.0,119250.0,5.80766881]
[1753646820307,1e-08,119260.0,119250.0,5.58676181]
[1753646820535,1e-08,119260.0,119250.0,5.11438681]
[1753646821134,0.0034,119270.0,119260.0,3.6036261]
[1753646821358,0.0034,119270.0,119260.0,4.38902029]
[1753646821554,0.0034,119270.0,119260.0,4.41872029]
[1753646821776,0.0034,119270.0,119260.0,1.44091229]
[1753646821979,0.0034,119270.0,119260.0,4.95587729]
[1753646822619,0.0034,119270.0,119260.0,4.92292529]
[1753646822832,0.0034,119270.0,119260.0,4.97443929]
[1753646822962,0.0034,119270.0,119260.0,4.97543929]
[1753646823187,0.0034,119270.0,119260.0,3.78526729]
[1753646823597,0.0034,119270.0,119260.0,3.4223677]
[1753646823809,0.0034,119270.0,119260.0,4.44352829]
[1753646824004,0.0034,119270.0,119260.0,4.42782829]
[1753646824222,1e-08,119270.0,119260.0,4.44322829]
[1753646824867,1e-08,119270.0,119260.0,4.38746229]
[1753646825074,1e-08,119270.0,119260.0,3.42631329]
[1753646825274,1e-08,119270.0,119260.0,3.26099429]
[1753646825505,0.04032001,119270.0,119260.0,1.6716187]
[1753646825719,0.4192196,119270.0,119260.0,1.5523767]
[1753646825932,0.4192196,119270.0,119260.0,1.4566837]
[1753646826154,0.4192196,119270.0,119260.0,1.05456268]
[1753646826349,0.4209096,119270.0,119260.0,1.05456268]
[1753646826969,0.4209096,119270.0,119260.0,0.92672268]
[1753646827181,0.4209096,119270.0,119260.0,1.05456268]
[1753646827406,0.42929337,119270.0,119260.0,0.51617238]
[1753646828021,0.4292933,119270.0,119260.0,0.51617238]
[1753646828437,0.4209096,119270.0,119260.0,0.51617238]
[1753646829082,0.4192196,119270.0,119260.0,0.51617238]
[1753646830960,0.4276033,119270.0,119260.0,0.51617238]
[1753646831387,0.4192196,119270.0,119260.0,0.51617238]
[1753646833858,0.4276033,119270.0,119260.0,0.51617238]
[1753646834197,0.4192196,119270.0,119260.0,0.51617238]
[1753646835513,0.05632001,119270.0,119260.0,0.51617238]
[1753646835758,0.4192196,119270.0,119260.0,0.51617238]
[1753646836918,0.4192196,119270.0,119260.0,0.38833238]
[1753646837166,0.42760344,119270.0,119260.0,0.51613238]
[1753646837391,0.43598742,119270.0,119260.0,0.51613238]
[1753646838022,0.42760344,119270.0,119260.0,0.51613238]
[1753646838205,0.06470385,119270.0,119260.0,0.51613238]
[1753646838426,0.42760344,119270.0,119260.0,0.51613238]
[1753646839303,0.42760337,119270.0,119260.0,0.51613238]
[1753646839780,0.4192196,119270.0,119260.0,0.51613238]
[1753646840008,0.05632001,119270.0,119260.0,0.51613238]
[1753646840251,0.01500001,119270.0,119260.0,0.6237496]
[1753646840482,0.01500001,119270.0,119260.0,0.54583238]
[1753646841163,0.01500001,119270.0,119260.0,0.54575238]
[1753646844572,1e-08,119270.0,119260.0,1.26058897]
[1753646844792,1e-08,119270.0,119260.0,1.27568897]
[1753646846251,1e-08,119270.0,119260.0,2.14003097]
[1753646846502,1e-08,119270.0,119260.0,2.02450827]
[1753646847582,1e-08,119270.0,119260.0,1.75390227]
[1753646848323,1e-08,119270.0,119260.0,1.00822927]
[1753646848546,1e-08,119270.0,119260.0,1.77994527]
[1753646849094,1e-08,119270.0,119260.0,1.69546797]
[1753646850517,1e-08,119270.0,119260.0,1.66943497]
[1753646850757,1e-08,119270.0,119260.0,1.20845397]
[1753646855059,1e-08,119270.0,119260.0,0.92375197]
[1753646855218,1e-08,119270.0,119260.0,1.60290897]
[1753646855442,1e-08,119270.0,119260.0,1.40542697]
[1753646855646,1e-08,119270.0,119260.0,1.33678497]
[1753646855823,1e-08,119270.0,119260.0,1.32168497]
[1753646856483,1e-08,119270.0,119260.0,1.37993742]
[1753646860260,1e-08,119270.0,119260.0,1.32168497]
[1753646860502,1e-08,119270.0,119260.0,1.33808497]
[1753646860947,1e-08,119270.0,119260.0,1.32168497]
[1753646863742,1e-08,119270.0,119260.0,0.74125038]
[1753646863954,1e-08,119270.0,119260.0,0.67654538]
[1753646864896,1e-08,119270.0,119260.0,0.64755938]
[1753646865538,0.3877596,119270.0,119260.0,0.54555238]
[1753646865752,0.4195596,119270.0,119260.0,0.54555238]
[1753646866506,0.4030596,119270.0,119260.0,0.54555238]
[1753646867415,0.3802296,119270.0,119260.0,0.54555238]
[1753646867628,0.3802296,119270.0,119260.0,0.64735938]
[1753646868137,0.3781996,119270.0,119260.0,0.64735938]
[1753646868588,0.01530001,119270.0,119260.0,0.64735938]
[1753646868975,0.01530001,119270.0,119260.0,0.64768938]
[1753646869238,0.01530001,119270.0,119260.0,0.54555238]
[1753646869453,0.01530001,119270.0,119260.0,0.64735938]
[1753646869640,0.01530001,119270.0,119260.0,0.64771938]
[1753646869849,0.3781996,119270.0,119260.0,0.54555238]
[1753646870469,0.4010296,119270.0,119260.0,0.54555238]
[1753646870722,0.3781996,119270.0,119260.0,0.54555238]
[1753646871262,0.4010296,119270.0,119260.0,0.54555238]
[1753646871473,0.4010296,119270.0,119260.0,0.60832504]
[1753646873244,0.3781996,119270.0,119260.0,0.64825938]
[1753646873648,0.3781996,119270.0,119260.0,0.64735938]
[1753646873853,0.3781996,119270.0,119260.0,0.54555238]
[1753646875570,0.3781996,119270.0,119260.0,0.64743238]
[1753646875977,0.3781996,119270.0,119260.0,0.54555238]
[1753646876302,0.3781996,119270.0,119260.0,0.64743238]
[1753646876522,0.01530001,119270.0,119260.0,0.54555238]
[1753646876739,0.01530001,119270.0,119260.0,0.64652238]
[1753646876925,0.01530001,119270.0,119260.0,0.54555238]
[1753646880539,1e-08,119270.0,119260.0,0.54555238]
[1753646881182,0.01540001,119270.0,119260.0,0.54555238]
[1753646881529,0.01742001,119270.0,119260.0,0.41803238]
[1753646881724,0.4186896,119270.0,119260.0,0.51585238]
[1753646882886,0.43545742,119270.0,119260.0,0.51585238]
[1753646883109,0.42707344,119270.0,119260.0,0.51585238]
[1753646883369,0.4186896,119270.0,119260.0,0.54310238]
[1753646884763,0.4030896,119270.0,119260.0,0.54310238]
[1753646884997,0.04019001,119270.0,119260.0,0.54310238]
[1753646885217,0.3803196,119270.0,119260.0,0.54524238]
[1753646885426,0.3782996,119270.0,119260.0,0.54524238]
[1753646885633,0.01540001,119270.0,119260.0,0.54524238]
[1753646886937,0.3782996,119270.0,119260.0,0.54524238]
[1753646890405,0.01540001,119270.0,119260.0,0.54524238]
[1753646894022,0.01540001,119270.0,119260.0,0.57065444]
[1753646894272,1e-08,119270.0,119260.0,0.57065444]
[1753646895084,0.01560001,119270.0,119260.0,0.57065444]
[1753646897599,0.01560001,119270.0,119260.0,0.93355403]
[1753646897756,1e-08,119270.0,119260.0,0.93355403]
[1753646902003,1e-08,119270.0,119260.0,0.93331183]
[1753646903051,1e-08,119270.0,119260.0,0.57041224]
[1753646903418,1e-08,119270.0,119260.0,0.93331183]
[1753646907052,1e-08,119270.0,119260.0,0.57041224]
[1753646907309,1e-08,119270.0,119260.0,0.93331183]
[1753646908724,1e-08,119270.0,119260.0,0.96990022]
[1753646908964,1e-08,119270.0,119260.0,0.94981183]
[1753646909654,1e-08,119270.0,119260.0,2.22271883]
[1753646912828,1e-08,119270.0,119260.0,1.14752424]
[1753646913061,1e-08,119270.0,119260.0,1.42654783]
[1753646913923,1e-08,119270.0,119260.0,1.42668435]
[1753646918072,1e-08,119270.0,119260.0,1.06378476]
[1753646918273,1e-08,119270.0,119260.0,1.42668435]
[1753646919880,1e-08,119270.0,119260.0,1.52186435]
[1753646920702,1e-08,119270.0,119260.0,0.58704876]
[1753646920917,1e-08,119270.0,119260.0,1.39770635]
[1753646925229,1e-08,119270.0,119260.0,1.84010535]
[1753646925893,1e-08,119270.0,119260.0,1.74003635]
[1753646926756,1e-08,119270.0,119260.0,1.60730935]
[1753646927141,1e-08,119270.0,119260.0,0.84756376]
[1753646927435,1e-08,119270.0,119260.0,1.21046335]
[1753646928089,1e-08,119270.0,119260.0,1.22646335]
[1753646930290,1e-08,119270.0,119260.0,1.42819535]
[1753646931298,1e-08,119270.0,119260.0,0.94944835]
[1753646931516,1e-08,119270.0,119260.0,1.48813335]
[1753646931699,1e-08,119270.0,119260.0,1.36061335]
[1753646931926,1e-08,119270.0,119260.0,1.48809335]
[1753646932881,1e-08,119270.0,119260.0,1.06525576]
[1753646933118,1e-08,119270.0,119260.0,1.42815535]
[1753646935483,1e-08,119270.0,119260.0,1.39977935]
[1753646936166,0.03316001,119270.0,119260.0,0.41363876]
[1753646936362,0.4200996,119270.0,119260.0,0.54111876]
[1753646936814,0.43686721,119270.0,119260.0,0.54111876]
[1753646937011,0.43686714,119270.0,119260.0,0.54111876]
[1753646937252,0.6045539,119270.0,119260.0,0.22102588]
[1753646937481,0.6045539,119270.0,119260.0,0.23846588]
[1753646937482,0.60624467,119270.0,119260.0,0.23846588]
[1753646937715,0.60624467,119270.0,119260.0,0.41455174]
[1753646937945,0.59786062,119270.0,119260.0,0.23846588]
[1753646938391,0.59786062,119270.0,119260.0,0.41455167]
[1753646938546,0.59786062,119270.0,119260.0,0.4061667]
[1753646938787,0.59786062,119270.0,119260.0,0.41455174]
[1753646938960,0.59786062,119270.0,119260.0,0.43132161]
[1753646939164,0.59786062,119270.0,119260.0,0.43970644]
[1753646939362,0.59786062,119270.0,119260.0,0.44809119]
[1753646939567,0.59786062,119270.0,119260.0,0.43132161]
[1753646939766,0.59786062,119270.0,119260.0,0.43970636]
[1753646940085,0.60624467,119270.0,119260.0,0.43970636]
[1753646940422,0.614629,119270.0,119260.0,0.43970636]
[1753646940733,0.614629,119270.0,119260.0,0.43132161]
[1753646940962,0.59786069,119270.0,119260.0,0.43132161]
[1753646942059,0.59786069,119270.0,119260.0,0.43970644]
[1753646942494,0.59786069,119270.0,119260.0,0.43132161]
[1753646944105,0.59786069,119270.0,119260.0,0.43970644]
[1753646944669,0.59786069,119270.0,119260.0,0.43132161]
[1753646945106,0.59786069,119270.0,119260.0,0.42293671]
[1753646945338,0.59786069,119270.0,119260.0,0.43132161]
[1753646945568,0.59786069,119270.0,119260.0,0.43970644]
[1753646946016,0.59786069,119270.0,119260.0,0.42293671]
[1753646946226,0.72534069,119270.0,119260.0,0.42293671]
[1753646946441,0.71695636,119270.0,119260.0,0.23846588]
[1753646946684,0.71695636,119270.0,119260.0,0.3216894]
[1753646946919,0.71695636,119270.0,119260.0,0.33007444]
[1753646947390,0.71695636,119270.0,119260.0,0.33845941]
[1753646947391,0.35405677,119270.0,119260.0,0.33845941]
[1753646947595,0.71695636,119270.0,119260.0,0.33845941]
[1753646948450,0.71695636,119270.0,119260.0,0.33007444]
[1753646948666,0.71695636,119270.0,119260.0,0.20263444]
[1753646948881,0.71695636,119270.0,119260.0,0.21101941]
[1753646949191,0.71695636,119270.0,119260.0,0.20263444]
[1753646950290,0.71695636,119270.0,119260.0,0.21101934]
[1753646950419,0.71695636,119270.0,119260.0,0.21940417]
[1753646950920,0.71526636,119270.0,119260.0,0.21940417]
[1753646951554,0.71526636,119270.0,119260.0,0.21101934]
[1753646952200,0.71526636,119270.0,119260.0,0.02654858]
[1753646952201,0.71695636,119270.0,119260.0,0.02654858]
[1753646952425,0.71695636,119270.0,119260.0,0.00113652]
[1753646953347,0.71695636,119270.0,119260.0,0.00013652]
[1753646953757,0.71695636,119270.0,119260.0,0.00313652]
[1753646954451,0.96695636,119270.0,119260.0,0.00313652]
[1753646954672,0.96695636,119270.0,119260.0,0.00413652]
[1753646955365,1.66985595,119270.0,119260.0,0.00413652]
[1753646955595,1.75433325,119270.0,119260.0,0.00413652]
[1753646956255,1.75433325,119270.0,119260.0,0.00313652]
[1753646956469,1.75433325,119270.0,119260.0,0.00013652]
[1753646960078,1.61933325,119270.0,119260.0,0.00013652]
[1753646960531,1.62716325,119270.0,119260.0,0.00013652]
[1753646960966,1.62816325,119270.0,119260.0,0.00013652]
[1753646962193,1.64365325,119270.0,119260.0,0.00013652]
[1753646962990,1.67455325,119270.0,119260.0,0.00013652]
[1753646968528,1.69200227,119270.0,119260.0,0.00013652]
[1753646972289,1.69200437,119270.0,119260.0,0.00013652]
[1753646972917,1.68417227,119270.0,119260.0,0.00013652]
[1753646973048,1.68248227,119270.0,119260.0,0.00013652]
[1753646973242,1.69031521,119270.0,119260.0,0.00013652]
[1753646977366,1.70599556,119270.0,119260.0,0.00013652]
[1753646979506,1.71187852,119270.0,119260.0,0.00013652]
[1753646979742,1.71188607,119270.0,119260.0,0.00013652]
[1753646982453,1.69619817,119270.0,119260.0,0.00013652]
[1753646982701,1.71190798,119270.0,119260.0,0.00013652]
[1753646983192,0.19353474,119260.0,119250.0,0.02723]
[1753646983399,1.18643713,119260.0,119250.0,0.02723]
[1753646984292,0.80110048,119250.0,119240.0,0.03023]
[1753646984518,1.7466499,119250.0,119240.0,0.0323]
[1753646984946,1.7627499,119250.0,119240.0,0.0323]
[1753646985375,1.75491696,119250.0,119240.0,0.03023]
[1753646985586,1.76277727,119250.0,119240.0,0.03023]
[1753646986079,1.76277727,119250.0,119240.0,0.0323]
[1753646986550,1.74667727,119250.0,119240.0,0.0333]
[1753646986795,1.74667727,119250.0,119240.0,0.0323]
[1753646987256,1.99667727,119250.0,119240.0,0.0323]
[1753646988737,1.72717727,119250.0,119240.0,0.0323]
[1753646990273,1.72717575,119250.0,119240.0,0.0323]
[1753646991207,1.74462477,119250.0,119240.0,0.03023]
[1753646991435,0.22596427,119240.0,119230.0,0.02723]
[1753646991656,0.55007904,119230.0,119220.0,0.03023]
[1753646991854,1.49565449,119230.0,119220.0,0.03023]
[1753646992061,1.49565449,119230.0,119220.0,0.0323]
[1753646993086,1.74565449,119230.0,119220.0,0.0323]
[1753647001680,1.74565449,119230.0,119220.0,0.03023]
[1753647004418,1.72915449,119230.0,119220.0,0.03023]
[1753647004712,1.72914228,119230.0,119220.0,0.03227]
[1753647004939,1.72914228,119230.0,119220.0,0.04797]
[1753647005988,1.72914228,119230.0,119220.0,0.03227]
[1753647007105,1.74544228,119230.0,119220.0,0.03227]
[1753647007752,1.74544228,119230.0,119220.0,0.03023]
[1753647007988,1.75993228,119230.0,119220.0,0.003]
[1753647009337,1.74544228,119230.0,119220.0,0.003]
[1753647009758,1.74544228,119230.0,119220.0,0.02635]
[1753647009959,1.74544228,119230.0,119220.0,0.02942]
[1753647010424,1.72914228,119230.0,119220.0,0.04796]
[1753647010688,1.36624269,119230.0,119220.0,0.04796]
[1753647010911,1.72914228,119230.0,119220.0,0.04796]
[1753647011323,1.72129552,119230.0,119220.0,0.04796]
[1753647014760,1.59385552,119230.0,119220.0,0.04796]
[1753647014985,1.34094691,119230.0,119220.0,0.06296]
[1753647017089,1.21350691,119230.0,119220.0,0.06296]
[1753647017387,1.34094691,119230.0,119220.0,0.06296]
[1753647018040,0.97804732,119230.0,119220.0,0.06296]
[1753647018298,1.34094691,119230.0,119220.0,0.06296]
[1753647018497,1.39671755,119230.0,119220.0,0.06296]
[1753647018719,1.34094691,119230.0,119220.0,0.06296]
[1753647019553,0.97804732,119230.0,119220.0,0.06296]
[1753647019761,1.34094691,119230.0,119220.0,0.06296]
[1753647020396,1.25646961,119230.0,119220.0,0.06296]
[1753647020607,0.89357002,119230.0,119220.0,0.06296]
[1753647020814,0.90195695,119230.0,119220.0,0.23071708]
[1753647021031,0.25,119230.0,119220.0,0.23071708]
[1753647021255,0.40260052,119230.0,119220.0,0.24749264]
[1753647021517,0.40260002,119230.0,119220.0,0.26426785]
[1753647021738,0.40260002,119230.0,119220.0,0.27265535]
[1753647021969,0.40260002,119230.0,119220.0,0.26426785]
[1753647022199,0.15260002,119230.0,119220.0,0.26426785]
[1753647022410,0.14421316,119230.0,119220.0,0.26426785]
[1753647022635,0.14421316,119230.0,119220.0,0.24749264]
[1753647022859,0.14421316,119230.0,119220.0,0.24010493]
[1753647022860,0.16098696,119230.0,119220.0,0.24010493]
[1753647023088,0.41098696,119230.0,119220.0,0.24849271]
[1753647023277,0.40259995,119230.0,119220.0,0.25688042]
[1753647023480,0.40259995,119230.0,119220.0,0.26526799]
[1753647023840,0.41098696,119230.0,119220.0,0.25688042]
[1753647024052,0.41937411,119230.0,119220.0,0.25688042]
[1753647024231,0.41098696,119230.0,119220.0,0.26526799]
[1753647024443,0.41098696,119230.0,119220.0,0.25688042]
[1753647024642,0.41937411,119230.0,119220.0,0.25688042]
[1753647025075,0.41937411,119230.0,119220.0,0.26526806]
[1753647025281,0.41098696,119230.0,119220.0,0.26526806]
[1753647025482,0.57873054,119230.0,119220.0,0.24010493]
[1753647025744,0.57873054,119230.0,119220.0,0.24849271]
[1753647025962,0.57873054,119230.0,119220.0,0.24010493]
[1753647026166,0.57873054,119230.0,119220.0,0.24849271]
[1753647026382,0.57873104,119230.0,119220.0,0.24849271]
[1753647027437,0.57873104,119230.0,119220.0,0.24010493]
[1753647027678,0.57873104,119230.0,119220.0,0.24849271]
[1753647028296,0.57034425,119230.0,119220.0,0.24010493]
[1753647028500,0.57034425,119230.0,119220.0,0.24849271]
[1753647028933,0.57034425,119230.0,119220.0,0.25688042]
[1753647029140,0.39421409,119230.0,119220.0,0.25688035]
[1753647029343,0.39421409,119230.0,119220.0,0.26526792]
[1753647029972,0.3942138,119230.0,119220.0,0.26526792]
[1753647030192,0.40260088,119230.0,119220.0,0.25688035]
[1753647030387,0.40260088,119230.0,119220.0,0.26526792]
[1753647030598,0.40260095,119230.0,119220.0,0.25688035]
[1753647031348,0.3942138,119230.0,119220.0,0.25688035]
[1753647031764,0.40260088,119230.0,119220.0,0.25688035]
[1753647032167,0.40260088,119230.0,119220.0,0.26526792]
[1753647032374,0.3942138,119230.0,119220.0,0.26526792]
[1753647032931,0.3942138,119230.0,119220.0,0.25688035]
[1753647033140,0.40260095,119230.0,119220.0,0.25688035]
[1753647033566,0.3942138,119230.0,119220.0,0.25688042]
[1753647033783,0.40256009,119230.0,119220.0,0.59623996]
[1753647034009,0.40256009,119230.0,119220.0,0.27365535]
[1753647034211,0.15256002,119230.0,119220.0,0.27365535]
[1753647034864,0.15256002,119230.0,119220.0,0.59623996]
[1753647035240,0.14417323,119230.0,119220.0,0.59623996]
[1753647035446,0.15256002,119230.0,119220.0,0.59623996]
[1753647035647,0.16094695,119230.0,119220.0,0.26526799]
[1753647035979,0.16933403,119230.0,119220.0,0.26526806]
[1753647036388,0.16933403,119230.0,119220.0,0.27365563]
[1753647037006,0.16094695,119230.0,119220.0,0.27365528]
[1753647037220,0.16094695,119230.0,119220.0,0.26526778]
[1753647037434,0.16933403,119230.0,119220.0,0.26526778]
[1753647038509,0.16094745,119230.0,119220.0,0.25688021]
[1753647039277,0.16094745,119230.0,119220.0,0.26526778]
[1753647039700,0.16094745,119230.0,119220.0,0.25688021]
[1753647039909,0.16094745,119230.0,119220.0,0.24849257]
[1753647040074,0.32869046,119230.0,119220.0,0.24849257]
[1753647040940,0.32030381,119230.0,119220.0,0.24010493]
[1753647041242,0.32030381,119230.0,119220.0,0.25688042]
[1753647042270,0.1525608,119230.0,119220.0,0.25688042]
[1753647042400,0.1525608,119230.0,119220.0,0.26526806]
[1753647043106,0.1525608,119230.0,119220.0,0.25688042]
[1753647043310,0.15256073,119230.0,119220.0,0.26526799]
[1753647043730,0.14417372,119230.0,119220.0,0.26526799]
[1753647044462,0.13578658,119230.0,119220.0,0.27365549]
[1753647044715,0.1441733,119230.0,119220.0,0.59623961]
[1753647044924,0.1441733,119230.0,119220.0,0.63651087]
[1753647045350,0.13578658,119230.0,119220.0,0.63651087]
[1753647045574,0.1441733,119230.0,119220.0,0.63651087]
[1753647046014,0.1274,119230.0,119220.0,0.63651087]
[1753647046229,0.13578658,119230.0,119220.0,0.63651087]
[1753647046624,0.88465827,119240.0,119230.0,0.20713009]
[1753647046821,1.01201827,119240.0,119230.0,0.59998596]
[1753647047209,0.76201827,119240.0,119230.0,0.59998596]
[1753647048162,0.76201827,119240.0,119230.0,0.60837282]
[1753647048362,0.77040464,119240.0,119230.0,0.60837289]
[1753647048544,0.76201827,119240.0,119230.0,0.61675975]
[1753647048911,0.76201827,119240.0,119230.0,0.60837289]
[1753647049112,0.77040464,119240.0,119230.0,0.60837289]
[1753647049692,0.76201827,119240.0,119230.0,0.60837289]
[1753647049880,0.76201827,119240.0,119230.0,0.61675975]
[1753647050109,0.77040464,119240.0,119230.0,0.60837289]
[1753647050315,0.77040464,119240.0,119230.0,0.60837297]
[1753647050442,0.77040464,119240.0,119230.0,0.25390403]
[1753647050859,0.50090464,119240.0,119230.0,0.23713009]
[1753647051123,0.66863359,119240.0,119230.0,0.22874301]
[1753647051328,0.66024764,119240.0,119230.0,0.23713016]
[1753647051709,0.65186155,119240.0,119230.0,0.22874301]
[1753647052145,0.34,119240.0,119230.0,0.22874301]
[1753647052364,0.66863317,119240.0,119230.0,0.23713009]
[1753647052667,0.67701961,119240.0,119230.0,0.23713009]
[1753647053264,0.6656338,119240.0,119230.0,0.23713009]
[1753647053460,0.6656338,119240.0,119230.0,0.2455171]
[1753647053665,0.6656338,119240.0,119230.0,0.23713009]
[1753647054078,0.6656338,119240.0,119230.0,0.23713016]
[1753647054437,0.6656338,119240.0,119230.0,0.24551724]
[1753647055069,0.6656338,119240.0,119230.0,0.23713016]
[1753647055445,0.6656338,119240.0,119230.0,0.24551724]
[1753647056445,0.6656338,119240.0,119230.0,0.23713016]
[1753647056630,0.9351338,119240.0,119230.0,0.23713016]
[1753647058373,0.9351338,119240.0,119230.0,0.24551724]
[1753647058580,0.9351338,119240.0,119230.0,0.23713016]
[1753647058918,0.76740478,119240.0,119230.0,0.24551717]
[1753647059101,0.76740478,119240.0,119230.0,0.61676012]
[1753647059748,0.39686,119240.0,119230.0,0.63353327]
[1753647059982,0.40524588,119240.0,119230.0,0.84801057]
[1753647061196,0.40524588,119240.0,119230.0,0.33838133]
[1753647061197,0.41363183,119240.0,119230.0,0.33838133]
[1753647061407,0.43879045,119240.0,119230.0,0.70962406]
[1753647061605,0.43879052,119240.0,119230.0,0.7012372]
[1753647062020,0.43879052,119240.0,119230.0,0.70962406]
[1753647062579,0.43040408,119240.0,119230.0,0.71801085]
[1753647062749,0.43879052,119240.0,119230.0,0.7012372]
[1753647062988,0.43879052,119240.0,119230.0,0.70962406]
[1753647063114,0.43879052,119240.0,119230.0,0.7012372]
[1753647063313,0.43879045,119240.0,119230.0,0.70962406]
[1753647063551,0.59813352,119240.0,119230.0,0.69285027]
[1753647064009,0.43040457,119240.0,119230.0,0.70962392]
[1753647064197,0.4220182,119240.0,119230.0,0.70962392]
[1753647064399,0.4304045,119240.0,119230.0,0.70123713]
[1753647064960,0.43879094,119240.0,119230.0,0.70123713]
[1753647065678,0.16929087,119240.0,119230.0,0.70962392]
[1753647065924,0.16090492,119240.0,119230.0,0.7012372]
[1753647066130,0.32863387,119240.0,119230.0,0.7012372]
[1753647066529,0.33702031,119240.0,119230.0,0.70962406]
[1753647066703,0.33702031,119240.0,119230.0,0.7012372]
[1753647066916,0.33702031,119240.0,119230.0,0.69285027]
[1753647067127,0.33702031,119240.0,119230.0,0.7012372]
[1753647067503,0.33702031,119240.0,119230.0,0.33838133]
[1753647067702,0.33702031,119240.0,119230.0,0.7012372]
[1753647068534,0.33202031,119240.0,119230.0,0.7012372]
[1753647068936,0.32363429,119240.0,119230.0,0.69285027]
[1753647069135,0.30686176,119240.0,119230.0,0.66007618]
[1753647069333,0.30686176,119240.0,119230.0,0.66632333]
[1753647069531,0.30686176,119240.0,119230.0,0.29508031]
[1753647070212,0.30686176,119240.0,119230.0,0.30346746]
[1753647070424,0.30686176,119240.0,119230.0,0.29508031]
[1753647070846,0.29847539,119240.0,119230.0,0.29508031]
[1753647072337,0.29847539,119240.0,119230.0,0.30346746]
[1753647072548,0.29847539,119240.0,119230.0,0.29508031]
[1753647072739,0.29847539,119240.0,119230.0,0.30346746]
[1753647072911,0.29847539,119240.0,119230.0,0.32238155]
[1753647073115,0.29847539,119240.0,119230.0,0.32989454]
[1753647073705,0.29847539,119240.0,119230.0,0.32150746]
[1753647074554,0.29847539,119240.0,119230.0,0.33828155]
[1753647074947,0.29847539,119240.0,119230.0,0.69275041]